bitfinex-derivatives/quotes_SOLF0:USTF0_20251020
["timestamp","ask_amount","ask_price","bid_price","bid_amount"]
[1760968923653,2.75,192.21,192.07,2.88]
[1760968923854,2.75,192.2,192.07,2.88]
[1760968924059,2.75,192.2,192.03,2.88]
[1760968924261,2.75,192.16,192.03,2.88]
[1760968924649,2.75,192.16,192.0,0.90589613]
[1760968924857,2.75,192.16,191.94,134.74]
[1760968924858,2.75,192.11,191.99,2.88]
[1760968925359,2.75,192.06,191.99,2.88]
[1760968925757,8.16856353,192.12,192.02,2.88]
[1760968925758,2.75,192.1,192.02,2.88]
[1760968926253,2.75,192.1,192.04,4.6857]
[1760968927260,4.6832,192.15,192.06,2.88]
[1760968927564,2.75,192.14,192.06,2.88]
[1760968928363,2.75,192.13,192.06,2.88]
[1760968928554,2.75,192.16,192.06,2.88]
[1760968928857,2.75,192.16,191.99,43.84]
[1760968928858,2.75,192.16,192.09,7.5644]
[1760968929058,2.75,192.16,192.09,2.88]
[1760968929558,2.75,192.16,192.1,4.6842]
[1760968929760,2.75,192.16,192.09,2.88]
[1760968932364,2.75,192.16,192.09,7.5645]
[1760968933057,2.75,192.16,192.09,2.88]
[1760968933263,2.75,192.2,192.09,2.88]
[1760968934053,2.75,192.24,192.07,2.82]
[1760968935067,2.75,192.24,192.15,2.82]
[1760968935457,23.67752042,192.31,192.11,2.82]
[1760968935661,23.67752042,192.31,192.07,2.82]
[1760968935662,2.81,192.21,192.07,2.82]
[1760968935872,8.17268042,192.22,192.07,2.82]
[1760968935873,2.81,192.19,192.07,2.82]
[1760968936367,2.81,192.14,192.07,2.82]
[1760968937765,2.81,192.18,192.08,2.82]
[1760968938158,7.4924,192.18,192.08,7.5048]
[1760968938461,2.81,192.17,192.08,7.5048]
[1760968938661,8.17268042,192.2,192.04,7.5058]
[1760968938662,2.66,192.14,192.04,7.5058]
[1760968938865,2.66,192.14,192.04,2.82]
[1760968939373,4.6837,192.13,192.04,7.5056]
[1760968939560,7.3437,192.13,192.05,2.63]
[1760968939778,2.66,192.12,192.05,2.63]
[1760968940164,2.66,192.12,192.05,7.3155]
[1760968940359,15.59,192.2,192.05,2.63]
[1760968940360,2.66,192.16,192.05,2.63]
[1760968940772,2.66,192.16,192.07,4.685]
[1760968941667,8.17268042,192.2,192.06,2.63]
[1760968941668,2.66,192.15,192.06,2.63]
[1760968941868,2.66,192.14,192.0,2.63]
[1760968942265,4.6841,192.12,192.03,4.6859]
[1760968942470,2.66,192.14,192.0,2.63]
[1760968943078,7.3448,192.09,192.01,4.6864]
[1760968943276,7.3448,192.09,192.0,2.63]
[1760968943777,7.3448,192.09,192.02,2.63]
[1760968944165,2.66,192.09,192.02,2.63]
[1760968944371,2.66,192.14,192.04,2.63]
[1760968944676,2.66,192.12,192.04,2.63]
[1760968945973,2.66,192.12,192.02,9.5700907]
[1760968946368,4.6847,192.09,192.02,9.5700907]
[1760968946574,7.3447,192.09,192.02,9.5700907]
[1760968946774,7.3447,192.09,192.0,2.63]
[1760968946977,2.66,192.09,192.02,7.3162]
[1760968947587,2.66,192.08,192.02,2.63]
[1760968947789,2.66,192.08,191.96,2.63]
[1760968948198,4.6856,192.06,191.98,7.3172]
[1760968948487,7.3456,192.06,191.98,7.3172]
[1760968949194,2.66,192.05,191.98,2.63]
[1760968950195,8.17268042,192.1,191.98,2.63]
[1760968950196,2.66,192.09,191.98,2.63]
[1760968950384,2.66,192.09,191.99,4.6869]
[1760968950589,2.66,192.09,191.99,7.3169]
[1760968950789,4.6853,192.07,191.99,7.3169]
[1760968950992,7.3453,192.07,191.99,7.3169]
[1760968951189,2.66,192.06,191.99,2.63]
[1760968953095,2.66,192.1,192.01,2.63]
[1760968953391,2.66,192.1,192.0,4.6867]
[1760968954080,2.66,192.06,191.98,7.3173]
[1760968954484,2.66,192.06,191.98,2.63]
[1760968954680,2.66,192.05,191.98,7.3172]
[1760968955290,2.66,192.05,191.99,4.687]
[1760968955593,2.66,192.05,191.98,2.63]
[1760968955805,2.66,192.04,191.98,2.63]
[1760968956098,2.66,192.04,191.95,46.49]
[1760968956400,7.3463,192.03,191.95,46.49]
[1760968956900,7.3463,192.03,191.95,51.1779]
[1760968957296,2.66,192.02,191.95,7.3179]
[1760968957598,2.66,192.08,191.93,17.46850566]
[1760968957898,2.66,192.08,191.93,7.3185]
[1760968958099,2.66,192.08,191.93,2.63]
[1760968958291,23.76268042,192.09,191.93,2.63]
[1760968958292,7.347,192.0,191.93,2.63]
[1760968959301,2.66,191.99,191.93,2.63]
[1760968961305,2.66,192.03,191.93,2.63]
[1760968961606,2.66,192.07,191.93,2.63]
[1760968961896,2.66,192.05,191.96,2.63]
[1760968962103,2.66,192.05,191.94,2.63]
[1760968962500,4.686,192.04,191.95,4.6879]
[1760968962700,2.66,192.03,191.95,7.3179]
[1760968963005,2.66,192.03,191.96,2.63]
[1760968963304,2.66,192.03,191.97,2.63]
[1760968964697,2.66,192.03,191.93,2.63]
[1760968965107,7.3463,192.03,191.93,2.63]
[1760968965491,2.66,192.02,191.93,2.63]
[1760968965695,2.66,192.0,191.93,7.3185]
[1760968966303,2.66,192.0,191.91,56.66000566]
[1760968966304,7.3475,191.98,191.91,12.78000566]
[1760968966615,5.17761579,191.97,191.89,2.63]
[1760968966803,5.42476895,192.01,191.89,2.63]
[1760968967105,5.17744662,192.0,191.89,2.63]
[1760968967302,2.66,192.02,191.89,2.63]
[1760968967506,5.17014096,192.01,191.91,2.63]
[1760968967716,2.66,192.02,191.91,2.63]
[1760968968198,2.66,192.02,191.95,4.688]
[1760968968400,2.66,192.02,191.93,2.63]
[1760968969401,2.77,192.01,191.93,2.63]
[1760968969607,2.77,192.01,191.89,2.77]
[1760968970204,2.77,191.99,191.89,2.77]
[1760968971009,2.77,191.99,191.93,2.77]
[1760968971806,2.77,191.99,191.93,7.4585]
[1760968973307,2.77,191.99,191.91,2.77]
[1760968974405,7.4573,191.99,191.91,2.77]
[1760968974605,4.94017058,191.99,191.91,2.77]
[1760968974912,4.94017058,191.99,191.92,4.6888]
[1760968975410,4.94017058,191.99,191.92,7.4588]
[1760968975611,4.94017058,191.99,191.95,2.77]
[1760968975806,2.17017058,191.99,191.95,2.77]
[1760968975997,2.17017058,192.02,191.95,7.4581]
[1760968976201,4.94017058,192.02,191.95,7.4581]
[1760968976407,2.77,192.01,191.92,2.77]
[1760968976806,2.17017058,192.0,191.94,4.6883]
[1760968978800,2.17017058,192.02,191.96,2.77]
[1760968979000,2.77,192.04,191.96,2.77]
[1760968979001,2.17017058,192.03,191.96,2.77]
[1760968979510,4.94017058,192.03,191.96,2.77]
[1760968980209,2.77,192.03,191.96,2.77]
[1760968980413,4.94017058,192.06,191.96,2.77]
[1760968980714,2.77,192.02,191.94,4.6882]
[1760968980908,2.77,191.99,191.92,2.77]
[1760968981212,2.77,191.96,191.88,2.77]
[1760968982606,2.17017058,191.97,191.88,2.77]
[1760968982814,2.77,191.97,191.88,2.77]
[1760968983814,7.4578,191.97,191.88,2.77]
[1760968984205,2.77,191.97,191.88,2.77]
[1760968984805,2.77,191.97,191.79,134.94]
[1760968984806,2.77,191.97,191.84,2.77]
[1760968985610,2.77,191.93,191.84,2.77]
[1760968986510,2.77,191.93,191.84,7.4606]
[1760968986705,4.6886,191.93,191.84,7.4606]
[1760968986905,2.77,191.92,191.84,7.4606]
[1760968987615,7.459,191.92,191.84,7.4606]
[1760968987811,2.77,191.91,191.84,2.77]
[1760968988412,2.77,191.91,191.84,7.4607]
[1760968988915,2.77,191.95,191.81,2.77]
[1760968990014,2.77,191.94,191.86,2.77]
[1760968990813,2.77,191.92,191.84,4.6907]
[1760968991414,2.77,191.92,191.84,7.4607]
[1760968991711,2.77,191.91,191.84,7.4607]
[1760968992212,2.77,191.91,191.84,4.6907]
[1760968992423,2.77,191.91,191.85,2.77]
[1760968992718,2.77,191.91,191.82,7.4612]
[1760968993108,7.4593,191.91,191.82,2.77]
[1760968993615,2.77,191.9,191.82,2.77]
[1760968993814,2.77,191.89,191.81,4.6915]
[1760968994016,2.77,191.89,191.82,2.77]
[1760968994214,2.67,191.97,191.82,2.77]
[1760968994810,2.67,191.97,191.8,2.76]
[1760968995417,2.67,191.99,191.8,2.76]
[1760968995612,2.67,191.99,191.79,5.42671843]
[1760968995613,2.67,191.99,191.82,2.76]
[1760968997021,4.6886,191.94,191.86,7.4502]
[1760968997214,2.67,191.93,191.86,7.4502]
[1760968997734,2.67,191.92,191.86,7.4502]
[1760968999108,2.67,191.92,191.87,7.56]
[1760969000417,2.67,191.92,191.87,2.87]
[1760969001221,2.61,191.98,191.87,2.87]
[1760969002523,7.2978,191.97,191.9,4.6892]
[1760969002723,7.2978,191.97,191.89,2.87]
[1760969002920,2.61,191.97,191.93,2.87]
[1760969003225,2.61,192.0,191.93,2.87]
[1760969003530,2.61,191.99,191.86,2.87]
[1760969004230,7.2973,191.99,191.92,4.6888]
[1760969004422,7.2973,191.99,191.9,2.87]
[1760969004423,2.61,191.99,191.9,2.87]
[1760969004728,2.17057292,191.98,191.9,2.87]
[1760969004929,2.17057292,192.0,191.94,7.5583]
[1760969005227,2.61,191.99,191.9,2.87]
[1760969005622,2.61,191.97,191.9,2.87]
[1760969005923,2.17057292,191.98,191.9,2.87]
[1760969006119,2.17057292,192.0,191.89,2.87]
[1760969006824,2.17057292,192.0,191.9,2.87]
[1760969007025,2.17057292,192.0,191.96,2.87]
[1760969007322,2.61,192.02,191.96,2.87]
[1760969007524,4.78057292,192.02,191.96,2.87]
[1760969008028,2.17057292,192.05,191.98,2.87]
[1760969008920,2.61,192.06,191.95,2.17057292]
[1760969008921,2.61,192.06,192.02,2.87]
[1760969009126,2.61,192.1,192.02,2.87]
[1760969009320,7.70774292,192.09,192.02,2.87]
[1760969009826,10.31774292,192.09,192.04,4.6858]
[1760969010025,5.53717,192.09,192.05,2.87]
[1760969010431,5.53717,192.09,192.08,4.685]
[1760969010631,5.53717,192.09,192.08,7.555]
[1760969013227,2.61,192.18,192.09,2.87]
[1760969013732,11.48920495,192.18,192.09,2.87]
[1760969013933,2.61,192.18,192.04,2.87]
[1760969014826,2.61,192.18,192.11,4.6842]
[1760969016937,2.61,192.18,192.12,4.6838]
[1760969017137,2.61,192.18,192.12,7.5538]
[1760969019036,5.41714076,192.2,192.14,7.5535]
[1760969019234,8.02714076,192.2,192.14,7.5535]
[1760969020644,8.02714076,192.2,192.15,4.6831]
[1760969020836,2.61,192.19,192.15,4.6831]
[1760969021037,7.47935557,192.23,192.16,2.87]
[1760969021338,2.61,192.21,192.17,4.6828]
[1760969021539,2.61,192.21,192.13,2.87]
[1760969021741,2.61,192.21,191.62,52.07411217]
[1760969021742,2.61,192.19,192.07,2.87]
[1760969022145,2.61,192.19,192.1,2.87]
[1760969023035,2.61,192.19,192.13,4.6836]
[1760969023638,2.61,192.19,192.11,4.6842]
[1760969024442,2.61,192.19,192.11,7.5542]
[1760969026246,2.61,192.19,192.11,2.87]
[1760969027846,2.61,192.19,192.12,4.6838]
[1760969028047,4.86420543,192.21,192.12,2.87]
[1760969028348,2.61,192.23,192.16,4.6829]
[1760969028946,2.61,192.22,192.16,4.6829]
[1760969029243,2.61,192.22,192.14,2.87]
[1760969029244,2.61,192.21,192.14,4.6834]
[1760969029449,2.61,192.21,192.1,2.78]
[1760969029644,2.61,192.2,192.1,2.78]
[1760969029847,2.61,192.2,192.12,4.6839]
[1760969030145,2.61,192.19,192.1,2.78]
[1760969030550,2.61,192.19,192.11,4.6841]
[1760969031444,2.61,192.19,192.12,2.78]
[1760969032038,2.61,192.23,192.16,4.6829]
[1760969032742,5.9938019,192.21,192.16,7.4629]
[1760969033143,2.61,192.2,192.16,7.4629]
[1760969033341,2.61,192.2,192.16,2.78]
[1760969034040,2.61,192.2,192.16,7.4629]
[1760969034546,5.9938019,192.21,192.17,4.6826]
[1760969034953,3.3838019,192.21,192.17,4.6826]
[1760969035159,2.61,192.2,192.16,2.78]
[1760969035953,2.61,192.2,192.16,7.4629]
[1760969036350,2.61,192.2,192.16,4.6829]
[1760969037049,2.61,192.19,192.13,2.78]
[1760969038052,2.61,192.19,192.13,7.4636]
[1760969038241,3.3838019,192.22,192.14,2.78]
[1760969038446,2.61,192.21,192.14,2.78]
[1760969038751,3.3838019,192.19,192.14,7.4634]
[1760969038948,2.61,192.18,192.1,2.78]
[1760969039357,2.61,192.18,192.12,2.78]
[1760969040451,2.61,192.18,192.07,2.78]
[1760969040958,2.61,192.18,192.11,4.6841]
[1760969041459,2.61,192.18,192.09,2.78]
[1760969041657,5.9938019,192.2,192.09,2.78]
[1760969042058,5.9938019,192.2,192.14,4.6834]
[1760969042756,5.9938019,192.2,192.06,3.3838019]
[1760969042757,3.3838019,192.22,192.16,2.78]
[1760969042956,5.9938019,192.23,192.16,2.78]
[1760969043255,2.61,192.27,192.21,2.78]
[1760969043457,5.01076316,192.26,192.21,2.78]
[1760969043663,2.61,192.27,192.21,2.78]
[1760969043960,9.3523,192.45,192.25,2.78]
[1760969043961,9.94494751,192.35,192.25,2.78]
[1760969044166,5.00871936,192.34,192.25,2.78]
[1760969044463,5.00871936,192.33,192.3,2.78]
[1760969044653,5.00871936,192.32,192.3,2.78]
[1760969044852,3.95004797,192.37,192.3,2.78]
[1760969044853,3.95004797,192.37,192.3,7.4594]
[1760969045053,4.87664624,192.36,192.3,2.78]
[1760969045255,4.87664624,192.35,192.3,2.78]
[1760969045460,4.87664624,192.34,192.3,2.78]
[1760969045651,4.87664624,192.33,192.3,2.78]
[1760969045855,4.87664624,192.32,192.3,2.78]
[1760969046056,3.94996125,192.36,192.31,4.6791]
[1760969046260,4.87654419,192.35,192.31,2.78]
[1760969046455,4.87654419,192.34,192.27,2.78]
[1760969046657,4.87654419,192.33,192.27,7.4603]
[1760969046860,4.87654419,192.32,192.28,2.78]
[1760969047157,3.9503243,192.36,192.28,2.78]
[1760969047460,4.70216883,192.36,192.28,2.78]
[1760969048061,8.65271256,192.36,192.32,2.78]
[1760969048362,3.3838019,192.38,192.32,2.78]
[1760969048564,6.5609704,192.37,192.29,4.6798]
[1760969048761,2.61,192.35,192.28,2.78]
[1760969048956,9.9447723,192.35,192.28,2.78]
[1760969049164,6.5609704,192.34,192.28,2.78]
[1760969049568,3.9509704,192.37,192.3,2.78]
[1760969049755,3.9509704,192.36,192.3,2.78]
[1760969049952,2.61,192.34,192.24,2.78]
[1760969050161,6.5609704,192.34,192.26,7.4604]
[1760969050356,3.9509704,192.33,192.26,7.4604]
[1760969050655,3.9509704,192.33,192.26,2.78]
[1760969050861,7.3347723,192.32,192.26,2.78]
[1760969051062,3.3838019,192.29,192.21,2.78]
[1760969051462,3.3838019,192.29,192.23,4.6813]
[1760969051651,3.3838019,192.29,192.21,2.78]
[1760969051959,3.3838019,192.26,192.21,7.4618]
[1760969052464,3.3838019,192.26,192.13,3.3838019]
[1760969052465,5.9938019,192.22,192.13,2.78]
[1760969052655,5.9938019,192.18,192.13,2.78]
[1760969052861,3.3838019,192.15,192.06,2.78]
[1760969053055,3.3838019,192.15,192.05,2.78]
[1760969053461,3.3838019,192.12,192.05,2.78]
[1760969053763,3.3838019,192.12,192.07,4.685]
[1760969053964,3.3838019,192.12,192.08,2.78]
[1760969054571,3.3838019,192.12,192.01,43.82]
[1760969054753,18.01700638,192.27,192.02,2.74]
[1760969054754,2.81,192.14,192.02,2.74]
[1760969055163,2.81,192.14,192.07,7.4252]
[1760969055364,4.81306644,192.25,192.08,2.74]
[1760969055365,2.81,192.2,192.08,2.74]
[1760969055666,2.81,192.2,192.11,7.424]
[1760969055858,2.81,192.24,192.12,2.74]
[1760969056956,2.81,192.24,192.17,4.6828]
[1760969057957,2.81,192.24,192.15,2.74]
[1760969057958,2.81,192.24,192.04,8.17768461]
[1760969058158,8.17768461,192.21,192.1,2.74]
[1760969058366,2.81,192.2,192.1,2.74]
[1760969058757,2.81,192.19,192.1,2.74]
[1760969059866,2.81,192.19,192.12,4.684]
[1760969060063,2.81,192.19,192.1,2.74]
[1760969060868,2.69,192.12,192.03,2.73]
[1760969061172,8.17768461,192.09,191.99,2.73]
[1760969061468,10.86768461,192.09,191.99,7.4172]
[1760969061769,10.86768461,192.09,191.99,2.73]
[1760969061956,2.69,192.08,191.99,2.73]
[1760969062672,2.69,192.08,191.95,2.73]
[1760969063267,2.69,192.08,191.96,4.6878]
[1760969063461,2.69,192.08,191.96,7.4178]
[1760969063967,2.69,192.08,191.98,4.6874]
[1760969064671,2.69,192.08,192.0,4.6869]
[1760969065762,2.69,192.08,192.0,7.4169]
[1760969066154,2.69,192.08,191.97,4.6874]
[1760969066759,2.69,192.08,191.98,4.6872]
[1760969067263,2.69,192.08,191.97,2.73]
[1760969067469,2.69,192.08,191.98,2.73]
[1760969067969,2.69,192.08,191.98,7.4172]
[1760969068561,2.69,192.08,191.99,4.6869]
[1760969068765,2.69,192.08,191.98,2.73]
[1760969069269,2.69,192.13,191.98,2.73]
[1760969069864,2.69,192.13,192.06,4.685]
[1760969070664,2.69,192.13,192.04,2.73]
[1760969071271,2.69,192.13,192.07,4.6848]
[1760969071476,2.69,192.16,192.04,2.73]
[1760969072166,2.69,192.16,192.07,4.6848]
[1760969072567,2.69,192.16,192.04,2.73]
[1760969072774,2.69,192.16,192.06,4.6851]
[1760969072971,2.69,192.16,192.04,2.73]
[1760969074974,2.69,192.16,192.06,4.6852]
[1760969075473,2.69,192.14,192.06,4.6852]
[1760969076273,2.69,192.14,192.04,2.73]
[1760969076274,4.6836,192.13,192.04,2.73]
[1760969076474,2.69,192.12,192.04,2.73]
[1760969076871,2.69,192.12,192.05,4.6853]
[1760969078484,15.55038461,192.17,192.04,2.73]
[1760969078687,7.3727,192.17,192.04,2.73]
[1760969079088,2.69,192.17,192.09,4.6845]
[1760969080082,2.69,192.17,192.07,2.73]
[1760969080288,9.08374585,192.21,192.07,2.73]
[1760969080289,10.86768461,192.21,192.07,2.73]
[1760969080676,8.17768461,192.21,192.07,2.73]
[1760969080882,2.69,192.2,192.07,2.73]
[1760969081987,2.69,192.2,192.1,4.6841]
[1760969082785,8.17768461,192.21,192.03,2.73]
[1760969082786,2.69,192.16,192.03,2.73]
[1760969083889,7.3729,192.16,192.03,2.73]
[1760969084093,2.69,192.16,192.03,2.73]
[1760969084496,2.69,192.16,192.09,4.6844]
[1760969084990,2.69,192.16,192.1,4.6841]
[1760969085197,2.69,192.21,192.09,2.73]
[1760969085894,8.17768461,192.22,192.12,4.6836]
[1760969085895,2.69,192.19,192.12,4.6836]
[1760969086395,2.69,192.19,192.13,4.6833]
[1760969087195,2.69,192.19,192.14,4.6831]
[1760969087490,2.69,192.23,192.14,2.73]
[1760969089096,2.7,192.22,192.16,4.6827]
[1760969090191,2.7,192.22,192.14,7.4133]
[1760969090398,7.3815,192.22,192.14,7.4133]
[1760969090590,7.3815,192.22,192.14,2.73]
[1760969091991,2.7,192.21,192.15,4.6829]
[1760969092800,7.3818,192.21,192.15,4.6829]
[1760969094088,2.7,192.25,192.16,4.6827]
[1760969094400,2.7,192.23,192.16,4.6827]
[1760969095987,4.6815,192.22,192.16,4.6827]
[1760969096793,2.7,192.22,192.17,4.6825]
[1760969097592,2.7,192.22,192.17,7.4125]
[1760969098195,2.7,192.22,192.18,7.4122]
[1760969098494,2.7,192.22,192.18,4.6822]
[1760969098697,2.7,192.22,192.15,2.73]
[1760969098903,4.00744771,192.21,192.1,2.73]
[1760969099102,2.7,192.21,192.1,2.73]
[1760969099906,2.7,192.21,192.15,7.4129]
[1760969100299,4.6811,192.23,192.1,2.73]
[1760969100493,4.6811,192.23,192.09,9.3691]
[1760969100494,4.00697323,192.22,192.11,2.73]
[1760969100698,4.00697323,192.24,192.11,2.73]
[1760969100902,5.41623535,192.29,192.11,2.73]
[1760969100903,12.92930179,192.29,192.11,2.73]
[1760969101197,2.7,192.27,192.12,2.73]
[1760969101498,5.41623535,192.25,192.12,2.73]
[1760969101704,2.7,192.23,192.15,7.4129]
[1760969102405,2.7,192.23,192.15,2.73]
[1760969102796,2.16510905,192.22,192.15,2.73]
[1760969102997,2.16510905,192.22,192.17,7.4124]
[1760969103193,2.16510905,192.22,192.18,2.73]
[1760969103506,4.86510905,192.22,192.18,2.73]
[1760969103703,2.16510905,192.2,192.15,4.683]
[1760969103901,2.16510905,192.2,192.16,2.73]
[1760969104097,2.16510905,192.22,192.16,4.6827]
[1760969104304,4.00735909,192.23,192.17,2.73]
[1760969104503,2.16510905,192.24,192.17,2.73]
[1760969105206,2.16510905,192.24,192.2,2.73]
[1760969106303,2.16510905,192.24,192.1,9.3685]
[1760969106304,2.16510905,192.26,192.21,2.73]
[1760969106502,2.16510905,192.28,192.21,2.73]
[1760969106702,4.00593761,192.27,192.21,2.73]
[1760969106909,2.16510905,192.28,192.24,4.6807]
[1760969107111,4.0058381,192.27,192.24,4.6807]
[1760969107312,4.0058381,192.26,192.24,7.4107]
[1760969107510,2.16510905,192.28,192.24,2.73]
[1760969107706,4.00524193,192.27,192.24,2.73]
[1760969108012,2.16510905,192.28,192.24,2.73]
[1760969108207,4.00419035,192.27,192.24,4.6807]
[1760969108410,4.86510905,192.32,192.25,2.73]
[1760969108616,4.00441018,192.31,192.25,2.73]
[1760969108916,4.00441018,192.3,192.25,2.73]
[1760969109119,4.00441018,192.29,192.25,2.73]
[1760969109324,4.00372037,192.28,192.25,2.73]
[1760969109623,4.86510905,192.3,192.21,2.73]
[1760969109819,4.00400683,192.29,192.21,2.73]
[1760969110010,4.00400683,192.28,192.21,2.73]
[1760969110207,4.00400683,192.27,192.21,2.73]
[1760969110406,2.7,192.29,192.22,4.6812]
[1760969110611,6.16915537,192.28,192.22,4.6812]
[1760969110811,4.00404632,192.27,192.23,2.73]
[1760969111110,4.86510905,192.28,192.23,2.73]
[1760969111310,4.00365059,192.27,192.23,2.73]
[1760969111512,4.00365059,192.26,192.23,2.73]
[1760969111712,4.00365059,192.27,192.23,2.73]
[1760969111909,4.00365059,192.26,192.22,4.6812]
[1760969112116,2.16510905,192.26,192.22,4.6812]
[1760969112612,2.7,192.23,192.14,2.16510905]
[1760969112811,2.16510905,192.22,192.15,2.73]
[1760969113209,2.16510905,192.24,192.2,2.73]
[1760969113413,4.00615082,192.25,192.2,2.73]
[1760969113614,2.16510905,192.26,192.2,2.73]
[1760969113911,2.7,192.24,192.21,4.6814]
[1760969114310,2.16510905,192.24,192.21,4.6814]
[1760969114507,4.93510905,192.24,192.19,4.682]
[1760969114821,4.93510905,192.2,192.11,2.63]
[1760969115717,2.16510905,192.22,192.16,2.63]
[1760969116219,4.93510905,192.22,192.17,7.3124]
[1760969116622,4.93510905,192.22,192.18,2.63]
[1760969117009,4.93510905,192.2,192.15,7.313]
[1760969117320,2.16510905,192.2,192.15,2.63]
[1760969117720,4.93510905,192.2,192.15,2.63]
[1760969118114,4.93510905,192.2,192.04,9.3715]
[1760969118115,2.77,192.17,192.14,4.6832]
[1760969118312,2.16510905,192.18,192.14,7.3132]
[1760969118716,4.93510905,192.18,192.14,7.3132]
[1760969120014,4.93510905,192.18,192.12,4.6837]
[1760969120221,2.16510905,192.16,192.12,4.6837]
[1760969120624,2.16510905,192.16,192.13,4.6834]
[1760969120823,2.16510905,192.18,192.12,2.63]
[1760969121126,2.16510905,192.2,192.12,2.63]
[1760969121424,2.16510905,192.2,192.17,2.63]
[1760969122017,2.16510905,192.2,192.13,2.63]
[1760969124229,2.85,192.23,192.11,2.16510905]
[1760969124230,2.16510905,192.21,192.16,2.63]
[1760969124610,2.85,192.23,192.18,7.3122]
[1760969124811,2.16510905,192.22,192.18,7.3122]
[1760969125012,2.16510905,192.22,192.13,2.16510905]
[1760969125211,2.16510905,192.24,192.2,4.6817]
[1760969125411,2.16510905,192.24,192.2,7.3117]
[1760969125616,5.01510905,192.24,192.2,7.3117]
[1760969125819,2.85,192.24,192.16,2.63]
[1760969126011,4.85560292,192.32,192.16,2.63]
[1760969126012,5.01510905,192.22,192.16,2.63]
[1760969126720,5.01510905,192.22,192.15,2.63]
[1760969127119,2.16510905,192.24,192.15,2.63]
[1760969127426,2.16510905,192.26,192.17,2.63]
[1760969127728,2.16510905,192.28,192.17,2.63]
[1760969127925,5.01510905,192.28,192.23,7.311]
[1760969128225,5.01510905,192.28,192.23,2.63]
[1760969128431,2.16510905,192.28,192.25,7.3105]
[1760969128619,2.16510905,192.29,192.25,7.3105]
[1760969128924,2.16510905,192.29,192.25,2.63]
[1760969129126,5.01510905,192.29,192.26,4.6803]
[1760969129322,2.16510905,192.29,192.26,7.3103]
[1760969129623,2.85,192.28,192.23,4.6809]
[1760969129821,2.16510905,192.27,192.19,2.63]
[1760969130217,5.01510905,192.27,192.19,2.63]
[1760969130724,2.16510905,192.27,192.22,4.6812]
[1760969130921,6.80416138,192.3,192.22,2.63]
[1760969131229,2.85,192.27,192.23,4.6811]
[1760969131627,2.85,192.27,192.23,7.3111]
[1760969132522,2.16510905,192.28,192.24,2.63]
[1760969133030,6.80318146,192.29,192.24,2.63]
[1760969133225,2.85,192.29,192.24,2.63]
[1760969134031,2.85,192.29,192.25,4.6806]
[1760969134230,2.85,192.29,192.2,2.16510905]